[Event "Late-Titled-Tuesday-Blitz-June-04-2024"]
[Site "Chess.com"]
[Date "2024.06.04"]
[Round "3"]
[White "Agustin_Meza"]
[Black "ilushka"]
[Result "1-0"]
[WhiteElo "2184"]
[BlackElo "2376"]
[TimeControl "180+1"]
[EndTime "14:28:09 PDT"]
[Termination "Agustin_Meza won on time"]

1. e4 {[%clk 0:03:00]} 1... e5 {[%clk 0:02:59.2]} 2. Nf3 {[%clk 0:03:00.1]} 2...
Nc6 {[%clk 0:02:58.9]} 3. Bb5 {[%clk 0:03:00.1]} 3... Nf6 {[%clk 0:02:59]} 4.
O-O {[%clk 0:02:57.1]} 4... Nxe4 {[%clk 0:02:58.5]} 5. d4 {[%clk 0:02:57.2]}
5... Nd6 {[%clk 0:02:57.7]} 6. Ba4 {[%clk 0:02:55.6]} 6... e4 {[%clk 0:02:56.7]}
7. Re1 {[%clk 0:02:54.2]} 7... Be7 {[%clk 0:02:55.3]} 8. Ne5 {[%clk 0:02:52.3]}
8... O-O {[%clk 0:02:52.7]} 9. Nc3 {[%clk 0:02:48.5]} 9... Nf5 {[%clk
0:02:46.2]} 10. Nxc6 {[%clk 0:02:40.6]} 10... dxc6 {[%clk 0:02:47.1]} 11. Rxe4
{[%clk 0:02:39.6]} 11... Bf6 {[%clk 0:02:45.5]} 12. Be3 {[%clk 0:02:34.5]} 12...
a5 {[%clk 0:02:25.7]} 13. Bb3 {[%clk 0:02:26.1]} 13... Re8 {[%clk 0:01:31.2]}
14. Qf3 {[%clk 0:02:10.7]} 14... Rxe4 {[%clk 0:01:08.8]} 15. Nxe4 {[%clk
0:02:09.8]} 15... Be7 {[%clk 0:00:09.2]} 16. c3 {[%clk 0:02:02.4]} 16... a4
{[%clk 0:00:09.1]} 17. Bc2 {[%clk 0:02:01.4]} 17... Nd6 {[%clk 0:00:09.5]} 18.
Nc5 {[%clk 0:01:58.8]} 18... b6 {[%clk 0:00:06.7]} 19. Nd3 {[%clk 0:01:58.4]}
19... Bf5 {[%clk 0:00:06.6]} 20. Re1 {[%clk 0:01:55.9]} 20... Bf6 {[%clk
0:00:04.6]} 21. Bf4 {[%clk 0:01:54.7]} 21... Bg6 {[%clk 0:00:04.7]} 22. Qd1
{[%clk 0:01:52.1]} 22... Nc4 {[%clk 0:00:04.7]} 23. Qc1 {[%clk 0:01:47.3]} 23...
a3 {[%clk 0:00:04.7]} 24. b3 {[%clk 0:01:47]} 24... Nd6 {[%clk 0:00:04.7]} 25.
Ne5 {[%clk 0:01:46.9]} 25... Nb5 {[%clk 0:00:04.3]} 26. Bxg6 {[%clk 0:01:45.2]}
26... hxg6 {[%clk 0:00:04]} 27. Nxc6 {[%clk 0:01:40.3]} 27... Qd7 {[%clk
0:00:04.3]} 28. Ne5 {[%clk 0:01:39.6]} 28... Qf5 {[%clk 0:00:04.9]} 29. Bg3
{[%clk 0:01:34.6]} 29... c5 {[%clk 0:00:05.1]} 30. dxc5 {[%clk 0:01:31.2]} 30...
bxc5 {[%clk 0:00:06]} 31. Nc4 {[%clk 0:01:30.4]} 31... Rd8 {[%clk 0:00:05.6]}
32. h3 {[%clk 0:01:29.3]} 32... Nxc3 {[%clk 0:00:05.5]} 33. Qxa3 {[%clk
0:01:26.3]} 33... Qc2 {[%clk 0:00:04.2]} 34. Qa5 {[%clk 0:01:20.4]} 34... Rd1
{[%clk 0:00:03.8]} 35. Qa8+ {[%clk 0:01:09.2]} 35... Kh7 {[%clk 0:00:03.3]} 36.
Qe8 {[%clk 0:01:09.1]} 36... Rxe1+ {[%clk 0:00:02.4]} 37. Qxe1 {[%clk
0:01:08.4]} 37... Qxa2 {[%clk 0:00:03.3]} 38. Be5 {[%clk 0:01:03.2]} 38... Qxb3
{[%clk 0:00:03.2]} 39. Bxf6 {[%clk 0:00:59.1]} 39... gxf6 {[%clk 0:00:04.1]} 40.
Ne3 {[%clk 0:00:59.3]} 40... Qb1 {[%clk 0:00:03.8]} 41. Qxb1 {[%clk 0:00:54.1]}
41... Nxb1 {[%clk 0:00:04.7]} 42. Kf1 {[%clk 0:00:55]} 42... Na3 {[%clk
0:00:04.4]} 43. Ke2 {[%clk 0:00:55.2]} 43... c4 {[%clk 0:00:04.6]} 44. Kd2
{[%clk 0:00:55.3]} 44... f5 {[%clk 0:00:04.4]} 45. Kc3 {[%clk 0:00:55.2]} 45...
f4 {[%clk 0:00:03.8]} 46. Nxc4 {[%clk 0:00:54.6]} 46... Nxc4 {[%clk 0:00:01.9]}
47. Kxc4 {[%clk 0:00:55.5]} 47... f3 {[%clk 0:00:02.4]} 48. g3 {[%clk
0:00:53.9]} 48... Kh6 {[%clk 0:00:03.3]} 49. Kd4 {[%clk 0:00:54.3]} 49... Kg5
{[%clk 0:00:02.4]} 50. Ke3 {[%clk 0:00:54.5]} 50... f5 {[%clk 0:00:02.6]} 51.
Kxf3 {[%clk 0:00:55.1]} 51... f4 {[%clk 0:00:02.8]} 52. g4 {[%clk 0:00:48]}
52... Kh4 {[%clk 0:00:03]} 53. Kxf4 {[%clk 0:00:48.1]} 53... Kxh3 {[%clk
0:00:02.4]} 54. Kg5 {[%clk 0:00:48.3]} 1-0

[Event "Late-Titled-Tuesday-Blitz-June-04-2024"]
[Site "Chess.com"]
[Date "2024.06.04"]
[Round "3"]
[White "moro182"]
[Black "Michalczak"]
[Result "0-1"]
[WhiteElo "2879"]
[BlackElo "2526"]
[TimeControl "180+1"]
[EndTime "14:28:14 PDT"]
[Termination "Michalczak won by resignation"]

1. d4 {[%clk 0:02:56]} 1... Nf6 {[%clk 0:02:59.1]} 2. Bf4 {[%clk 0:02:55.8]}
2... d5 {[%clk 0:02:57.4]} 3. e3 {[%clk 0:02:56.2]} 3... c5 {[%clk 0:02:57.1]}
4. dxc5 {[%clk 0:02:57.1]} 4... e6 {[%clk 0:02:50.5]} 5. b4 {[%clk 0:02:56.6]}
5... a5 {[%clk 0:02:47]} 6. c3 {[%clk 0:02:56.9]} 6... axb4 {[%clk 0:02:46.1]}
7. cxb4 {[%clk 0:02:57.8]} 7... b6 {[%clk 0:02:45.3]} 8. Bxb8 {[%clk 0:02:57.3]}
8... Rxb8 {[%clk 0:02:30.8]} 9. Bb5+ {[%clk 0:02:57.6]} 9... Ke7 {[%clk
0:01:48.1]} 10. c6 {[%clk 0:02:58.5]} 10... Qd6 {[%clk 0:01:39.4]} 11. a3 {[%clk
0:02:56.7]} 11... Ne4 {[%clk 0:01:32.9]} 12. Nf3 {[%clk 0:02:56.5]} 12... g5
{[%clk 0:01:29.2]} 13. O-O {[%clk 0:02:55.2]} 13... Bg7 {[%clk 0:01:28.6]} 14.
Nd4 {[%clk 0:02:55]} 14... Be5 {[%clk 0:01:20.4]} 15. h3 {[%clk 0:02:48]} 15...
Rg8 {[%clk 0:01:19.6]} 16. Ra2 {[%clk 0:02:40.2]} 16... g4 {[%clk 0:01:18.9]}
17. hxg4 {[%clk 0:02:18.9]} 17... Bh2+ {[%clk 0:01:17.9]} 18. Kh1 {[%clk
0:02:18.9]} 18... e5 {[%clk 0:01:06.1]} 19. Kxh2 {[%clk 0:01:43.3]} 19... exd4+
{[%clk 0:01:04.4]} 20. Kg1 {[%clk 0:01:42.1]} 20... Rxg4 {[%clk 0:00:32.2]} 21.
f3 {[%clk 0:01:06.1]} 21... Rh4 {[%clk 0:00:32.3]} 22. fxe4 {[%clk 0:01:04.3]}
22... Qh2+ {[%clk 0:00:32.9]} 23. Kf2 {[%clk 0:01:04.2]} 23... dxe3+ {[%clk
0:00:33.2]} 24. Kxe3 {[%clk 0:00:58]} 24... Rxe4+ {[%clk 0:00:33.6]} 25. Kd3
{[%clk 0:00:35.3]} 25... Qe5 {[%clk 0:00:34.2]} 26. Qf3 {[%clk 0:00:25.8]} 26...
Be6 {[%clk 0:00:17]} 27. Nc3 {[%clk 0:00:25.9]} 27... Qd4+ {[%clk 0:00:11.6]}
28. Kc2 {[%clk 0:00:25.5]} 28... Re3 {[%clk 0:00:12.2]} 29. Qf6+ {[%clk
0:00:17]} 29... Qxf6 {[%clk 0:00:12.2]} 30. Rxf6 {[%clk 0:00:17.9]} 30... Kxf6
{[%clk 0:00:12.8]} 31. Ba6 {[%clk 0:00:18.3]} 31... Rg8 {[%clk 0:00:09.4]} 32.
Bf1 {[%clk 0:00:11.3]} 32... Re1 {[%clk 0:00:08.7]} 33. Be2 {[%clk 0:00:08.5]}
33... Rxg2 {[%clk 0:00:07.2]} 34. Kd2 {[%clk 0:00:08.7]} 34... Reg1 {[%clk
0:00:06.1]} 35. Rc2 {[%clk 0:00:08.5]} 35... d4 {[%clk 0:00:05.6]} 36. Ne4+
{[%clk 0:00:08.8]} 36... Ke5 {[%clk 0:00:05]} 37. c7 {[%clk 0:00:06.1]} 37...
Rxe2+ {[%clk 0:00:05.2]} 38. Kxe2 {[%clk 0:00:05.9]} 38... Kxe4 {[%clk
0:00:05.3]} 39. c8=Q {[%clk 0:00:05.4]} 39... d3+ {[%clk 0:00:05.2]} 40. Kf2
{[%clk 0:00:04.6]} 40... Bxc8 {[%clk 0:00:05.1]} 41. Rxc8 {[%clk 0:00:04.6]}
41... d2 {[%clk 0:00:04.5]} 42. Re8+ {[%clk 0:00:04.3]} 42... Kf5 {[%clk
0:00:04.6]} 43. Kxg1 {[%clk 0:00:02.8]} 43... d1=Q+ {[%clk 0:00:04.9]} 44. Kf2
{[%clk 0:00:03.7]} 44... Qd4+ {[%clk 0:00:04.6]} 45. Re3 {[%clk 0:00:04.2]}
45... Kf4 {[%clk 0:00:04.2]} 0-1

[Event "Late-Titled-Tuesday-Blitz-June-04-2024"]
[Site "Chess.com"]
[Date "2024.06.04"]
[Round "3"]
[White "JEIGOTH"]
[Black "HalfIsCrayfish"]
[Result "0-1"]
[WhiteElo "2330"]
[BlackElo "2556"]
[TimeControl "180+1"]
[EndTime "14:28:16 PDT"]
[Termination "HalfIsCrayfish won on time"]

1. Nf3 {[%clk 0:02:59.9]} 1... g5 {[%clk 0:02:58.2]} 2. Nxg5 {[%clk 0:02:58.8]}
2... e5 {[%clk 0:02:58.9]} 3. Nf3 {[%clk 0:02:56]} 3... e4 {[%clk 0:02:58.8]} 4.
Nd4 {[%clk 0:02:54.5]} 4... c5 {[%clk 0:02:59.1]} 5. Nb3 {[%clk 0:02:54.6]} 5...
d5 {[%clk 0:02:57.7]} 6. d3 {[%clk 0:02:54.2]} 6... Nf6 {[%clk 0:02:56.6]} 7.
Nc3 {[%clk 0:02:50]} 7... exd3 {[%clk 0:02:54.1]} 8. exd3 {[%clk 0:02:49.5]}
8... d4 {[%clk 0:02:54]} 9. Ne4 {[%clk 0:02:44]} 9... Nxe4 {[%clk 0:02:53.7]}
10. dxe4 {[%clk 0:02:44.9]} 10... Be7 {[%clk 0:02:50.9]} 11. a4 {[%clk
0:02:40.4]} 11... Nc6 {[%clk 0:02:51.1]} 12. Nd2 {[%clk 0:02:30.5]} 12... Be6
{[%clk 0:02:50]} 13. Bc4 {[%clk 0:02:28.9]} 13... Qd7 {[%clk 0:02:49]} 14. Bxe6
{[%clk 0:02:28.7]} 14... Qxe6 {[%clk 0:02:49.9]} 15. Qe2 {[%clk 0:02:28.5]}
15... O-O-O {[%clk 0:02:48.7]} 16. Nc4 {[%clk 0:02:25.7]} 16... Rhg8 {[%clk
0:02:48.2]} 17. g3 {[%clk 0:02:22.6]} 17... d3 {[%clk 0:02:39.6]} 18. cxd3
{[%clk 0:02:17.6]} 18... Nb4 {[%clk 0:02:16.6]} 19. O-O {[%clk 0:02:05.3]} 19...
Nxd3 {[%clk 0:02:14.1]} 20. Na3 {[%clk 0:01:57.6]} 20... h5 {[%clk 0:02:12.3]}
21. Rd1 {[%clk 0:01:53.1]} 21... Ne5 {[%clk 0:02:09.9]} 22. Bf4 {[%clk
0:01:44.1]} 22... h4 {[%clk 0:02:08.2]} 23. Rxd8+ {[%clk 0:01:43.9]} 23... Rxd8
{[%clk 0:02:04.5]} 24. Nb5 {[%clk 0:01:37.6]} 24... a6 {[%clk 0:02:01.5]} 25.
Nc3 {[%clk 0:01:33.5]} 25... Nd3 {[%clk 0:01:53.4]} 26. Be3 {[%clk 0:01:26]}
26... hxg3 {[%clk 0:01:53.4]} 27. fxg3 {[%clk 0:01:22.5]} 27... c4 {[%clk
0:01:50.7]} 28. Rf1 {[%clk 0:01:10.4]} 28... Bb4 {[%clk 0:01:48.7]} 29. Nd5
{[%clk 0:00:56.1]} 29... Qxe4 {[%clk 0:01:28.5]} 30. Nxb4 {[%clk 0:00:54.2]}
30... Nxb4 {[%clk 0:01:26.6]} 31. Rf4 {[%clk 0:00:54.3]} 31... Qb1+ {[%clk
0:01:17.7]} 32. Kg2 {[%clk 0:00:49.1]} 32... Nd3 {[%clk 0:01:02.2]} 33. Rxc4+
{[%clk 0:00:42.9]} 33... Kb8 {[%clk 0:01:02.3]} 34. Bf4+ {[%clk 0:00:28.3]}
34... Ka8 {[%clk 0:01:00.9]} 35. Qe7 {[%clk 0:00:13.7]} 35... Nxf4+ {[%clk
0:00:57.1]} 36. Rxf4 {[%clk 0:00:12.8]} 36... Qc2+ {[%clk 0:00:55.8]} 37. Rf2
{[%clk 0:00:13.1]} 37... Qc6+ {[%clk 0:00:56]} 38. Kh3 {[%clk 0:00:10.1]} 38...
Rh8+ {[%clk 0:00:53.5]} 39. Kg4 {[%clk 0:00:10.2]} 39... Qxa4+ {[%clk
0:00:33.6]} 40. Rf4 {[%clk 0:00:05.3]} 40... Qd1+ {[%clk 0:00:32.4]} 41. Kf5
{[%clk 0:00:04.2]} 41... Rh5+ {[%clk 0:00:14.1]} 42. Kf6 {[%clk 0:00:04.4]}
42... Rh6+ {[%clk 0:00:14.7]} 43. Kg7 {[%clk 0:00:04.5]} 43... Rd6 {[%clk
0:00:12.9]} 44. Qe8+ {[%clk 0:00:03.7]} 44... Rd8 {[%clk 0:00:12.8]} 45. Qe7
{[%clk 0:00:02.2]} 45... Rd7 {[%clk 0:00:11.2]} 46. Qe8+ {[%clk 0:00:02]} 46...
Rd8 {[%clk 0:00:11.8]} 47. Qe7 {[%clk 0:00:01.9]} 47... Qd2 {[%clk 0:00:10.2]}
48. Rxf7 {[%clk 0:00:02]} 48... Qxb2+ {[%clk 0:00:10.5]} 0-1

[Event "Late-Titled-Tuesday-Blitz-June-04-2024"]
[Site "Chess.com"]
[Date "2024.06.04"]
[Round "3"]
[White "Itay121"]
[Black "dasatcu90"]
[Result "1-0"]
[WhiteElo "2536"]
[BlackElo "2239"]
[TimeControl "180+1"]
[EndTime "14:28:16 PDT"]
[Termination "Itay121 won by resignation"]

1. e4 {[%clk 0:03:00.9]} 1... c6 {[%clk 0:02:59.8]} 2. d4 {[%clk 0:02:55.6]}
2... d5 {[%clk 0:03:00.7]} 3. e5 {[%clk 0:02:54.9]} 3... Bf5 {[%clk 0:03:00.3]}
4. Nf3 {[%clk 0:02:55.3]} 4... e6 {[%clk 0:03:00.5]} 5. Be2 {[%clk 0:02:55.5]}
5... Nd7 {[%clk 0:03:00.8]} 6. Be3 {[%clk 0:02:55]} 6... h6 {[%clk 0:03:00.1]}
7. O-O {[%clk 0:02:55.3]} 7... Ne7 {[%clk 0:02:59.3]} 8. c4 {[%clk 0:02:53.9]}
8... dxc4 {[%clk 0:02:58]} 9. Bxc4 {[%clk 0:02:46.6]} 9... Nb6 {[%clk
0:02:57.6]} 10. Bb3 {[%clk 0:02:43.3]} 10... Ned5 {[%clk 0:02:56.3]} 11. Nc3
{[%clk 0:02:43.3]} 11... Be7 {[%clk 0:02:54.2]} 12. Rc1 {[%clk 0:02:41.9]} 12...
O-O {[%clk 0:02:53.7]} 13. Re1 {[%clk 0:02:40.2]} 13... a5 {[%clk 0:02:44.6]}
14. Qd2 {[%clk 0:02:38.5]} 14... a4 {[%clk 0:02:39.7]} 15. Bc2 {[%clk
0:02:32.2]} 15... Nc4 {[%clk 0:02:38.7]} 16. Qe2 {[%clk 0:02:30.3]} 16... Bxc2
{[%clk 0:02:06.6]} 17. Rxc2 {[%clk 0:02:25.5]} 17... Ncxe3 {[%clk 0:02:02.2]}
18. fxe3 {[%clk 0:02:24.5]} 18... a3 {[%clk 0:01:59.4]} 19. b3 {[%clk
0:02:12.6]} 19... Bb4 {[%clk 0:01:57.6]} 20. Nxd5 {[%clk 0:01:54.6]} 20... Bxe1
{[%clk 0:01:53.5]} 21. Nf6+ {[%clk 0:01:38.5]} 21... gxf6 {[%clk 0:01:53.2]} 22.
Qxe1 {[%clk 0:01:37.6]} 22... f5 {[%clk 0:01:48.4]} 23. Nd2 {[%clk 0:01:24.8]}
23... Kh7 {[%clk 0:01:46.6]} 24. Nc4 {[%clk 0:01:24.8]} 24... Rg8 {[%clk
0:01:44.6]} 25. Nd6 {[%clk 0:01:23]} 25... Qe7 {[%clk 0:01:39]} 26. Kh1 {[%clk
0:01:19]} 26... Rad8 {[%clk 0:01:31.9]} 27. e4 {[%clk 0:01:14.7]} 27... Rxd6
{[%clk 0:01:30.3]} 28. exd6 {[%clk 0:01:15]} 28... Qxd6 {[%clk 0:01:31]} 29.
exf5 {[%clk 0:01:14.3]} 29... Qxd4 {[%clk 0:01:25.2]} 30. fxe6 {[%clk
0:01:10.6]} 30... fxe6 {[%clk 0:01:25.2]} 31. Rd2 {[%clk 0:01:04.5]} 31... Qg4
{[%clk 0:01:19.3]} 32. Re2 {[%clk 0:00:50.9]} 32... Rg6 {[%clk 0:01:11.9]} 33.
Qd2 {[%clk 0:00:45.8]} 33... h5 {[%clk 0:01:07.1]} 34. Qd7+ {[%clk 0:00:42.8]}
34... Rg7 {[%clk 0:01:06.1]} 35. Qxe6 {[%clk 0:00:39.2]} 35... Qxe6 {[%clk
0:01:01.3]} 36. Rxe6 {[%clk 0:00:40.1]} 36... Rd7 {[%clk 0:01:01.3]} 37. h3
{[%clk 0:00:36.8]} 37... Rd2 {[%clk 0:01:00.9]} 38. Kh2 {[%clk 0:00:37.2]} 38...
Rxa2 {[%clk 0:01:00.3]} 39. Re7+ {[%clk 0:00:36.8]} 39... Kg6 {[%clk 0:01:00.1]}
40. Rxb7 {[%clk 0:00:37.7]} 40... Rb2 {[%clk 0:01:00.3]} 41. Rb6 {[%clk
0:00:34.4]} 41... Kf5 {[%clk 0:00:56.7]} 42. Rxc6 {[%clk 0:00:32.9]} 42... Rxb3
{[%clk 0:00:57.1]} 43. Rc5+ {[%clk 0:00:31.8]} 43... Ke4 {[%clk 0:00:55.2]} 44.
Rxh5 {[%clk 0:00:30.5]} 44... Kd3 {[%clk 0:00:52.8]} 45. Ra5 {[%clk 0:00:29.3]}
45... Kc2 {[%clk 0:00:52.4]} 46. h4 {[%clk 0:00:29.5]} 46... Kb2 {[%clk
0:00:52.3]} 47. g4 {[%clk 0:00:28]} 47... a2 {[%clk 0:00:52.2]} 48. Rxa2+ {[%clk
0:00:26.3]} 48... Kxa2 {[%clk 0:00:53.1]} 49. h5 {[%clk 0:00:25.9]} 49... Ka3
{[%clk 0:00:51.5]} 50. h6 {[%clk 0:00:23.7]} 50... Ka4 {[%clk 0:00:48.1]} 51. h7
{[%clk 0:00:17.8]} 51... Rb8 {[%clk 0:00:42.9]} 52. g5 {[%clk 0:00:18.2]} 52...
Rh8 {[%clk 0:00:37.6]} 53. g6 {[%clk 0:00:18.6]} 53... Kb5 {[%clk 0:00:38.5]}
54. Kg3 {[%clk 0:00:15.7]} 54... Kb6 {[%clk 0:00:36.8]} 55. Kf4 {[%clk
0:00:11.8]} 55... Kc7 {[%clk 0:00:37]} 56. g7 {[%clk 0:00:10.6]} 56... Rxh7
{[%clk 0:00:36.9]} 57. g8=Q {[%clk 0:00:11.3]} 57... Rd7 {[%clk 0:00:37.3]} 58.
Qc4+ {[%clk 0:00:11.2]} 58... Kd6 {[%clk 0:00:36.1]} 59. Kf5 {[%clk 0:00:11.2]}
59... Rf7+ {[%clk 0:00:35.7]} 60. Qxf7 {[%clk 0:00:11.2]} 1-0

[Event "Late-Titled-Tuesday-Blitz-June-04-2024"]
[Site "Chess.com"]
[Date "2024.06.04"]
[Round "3"]
[White "CarlosjPineror"]
[Black "ShiroglanTalibov"]
[Result "0-1"]
[WhiteElo "2662"]
[BlackElo "2906"]
[TimeControl "180+1"]
[EndTime "14:28:19 PDT"]
[Termination "ShiroglanTalibov won on time"]

1. e4 {[%clk 0:03:00.9]} 1... c5 {[%clk 0:02:58.2]} 2. Nf3 {[%clk 0:03:00.3]}
2... Nc6 {[%clk 0:02:54.2]} 3. g3 {[%clk 0:02:59.1]} 3... g6 {[%clk 0:02:49.1]}
4. Bg2 {[%clk 0:02:58.9]} 4... Bg7 {[%clk 0:02:49.7]} 5. O-O {[%clk 0:02:59.1]}
5... d6 {[%clk 0:02:44.3]} 6. h3 {[%clk 0:02:58.4]} 6... e5 {[%clk 0:02:43.9]}
7. Nc3 {[%clk 0:02:57.4]} 7... Nge7 {[%clk 0:02:44.1]} 8. d3 {[%clk 0:02:57.9]}
8... O-O {[%clk 0:02:44.2]} 9. Nd2 {[%clk 0:02:58.6]} 9... f5 {[%clk 0:02:43.1]}
10. Nc4 {[%clk 0:02:59.3]} 10... f4 {[%clk 0:02:42.4]} 11. Nb5 {[%clk
0:02:55.4]} 11... Rf6 {[%clk 0:02:34.7]} 12. g4 {[%clk 0:01:23]} 12... h6 {[%clk
0:02:28]} 13. Bd2 {[%clk 0:01:13.8]} 13... a6 {[%clk 0:02:24.9]} 14. Nc3 {[%clk
0:01:14.2]} 14... b5 {[%clk 0:02:21.5]} 15. Na3 {[%clk 0:01:07]} 15... b4 {[%clk
0:02:21.2]} 16. Nc4 {[%clk 0:01:07.6]} 16... bxc3 {[%clk 0:02:21.4]} 17. bxc3
{[%clk 0:01:08.5]} 17... Be6 {[%clk 0:02:14.5]} 18. Na3 {[%clk 0:01:08.5]} 18...
Qa5 {[%clk 0:02:09.2]} 19. Nb1 {[%clk 0:01:07.7]} 19... f3 {[%clk 0:02:03.8]}
20. Bxf3 {[%clk 0:01:05.5]} 20... Raf8 {[%clk 0:02:04.4]} 21. Bg2 {[%clk
0:01:04]} 21... g5 {[%clk 0:02:05]} 22. c4 {[%clk 0:01:03.8]} 22... Qd8 {[%clk
0:01:57.1]} 23. c3 {[%clk 0:01:03]} 23... Ng6 {[%clk 0:01:56.9]} 24. Na3 {[%clk
0:01:01.5]} 24... Nh4 {[%clk 0:01:55.2]} 25. f3 {[%clk 0:00:53.1]} 25... Ne7
{[%clk 0:01:44.9]} 26. Nc2 {[%clk 0:00:52.8]} 26... Nxg2 {[%clk 0:01:45.2]} 27.
Kxg2 {[%clk 0:00:52.8]} 27... Ng6 {[%clk 0:01:46.1]} 28. Ne1 {[%clk 0:00:49.5]}
28... Qa5 {[%clk 0:01:43.8]} 29. Qc2 {[%clk 0:00:30.9]} 29... R6f7 {[%clk
0:01:40.9]} 30. Rb1 {[%clk 0:00:29.9]} 30... Bd7 {[%clk 0:01:41]} 31. Qb2 {[%clk
0:00:27.1]} 31... Nf4+ {[%clk 0:01:35.5]} 32. Bxf4 {[%clk 0:00:26.5]} 32... exf4
{[%clk 0:01:36.4]} 33. Nc2 {[%clk 0:00:18.4]} 33... Ba4 {[%clk 0:01:35.3]} 34.
Rfc1 {[%clk 0:00:14.3]} 34... Bxc3 {[%clk 0:01:34.6]} 35. Qb6 {[%clk 0:00:14.7]}
35... Qxb6 {[%clk 0:01:33.5]} 36. Rxb6 {[%clk 0:00:15.6]} 36... Bd2 {[%clk
0:01:33.9]} 37. Rd1 {[%clk 0:00:16]} 37... Be3 {[%clk 0:01:25]} 38. Rb2 {[%clk
0:00:15.9]} 38... Bd4 {[%clk 0:01:23.2]} 39. Nxd4 {[%clk 0:00:12.9]} 39... Bxd1
{[%clk 0:01:23.5]} 40. Nf5 {[%clk 0:00:12.5]} 40... Kh7 {[%clk 0:01:16.7]} 41.
Rb6 {[%clk 0:00:10.9]} 41... Rf6 {[%clk 0:01:15.2]} 42. Rb7+ {[%clk 0:00:10]}
42... R8f7 {[%clk 0:01:14.9]} 43. Rb8 {[%clk 0:00:10.6]} 43... Bc2 {[%clk
0:01:14.2]} 44. Rd8 {[%clk 0:00:07.9]} 44... Bxd3 {[%clk 0:01:11.9]} 45. Nxd6
{[%clk 0:00:08.3]} 45... Ra7 {[%clk 0:01:07]} 46. Kf2 {[%clk 0:00:04.3]} 46...
Re6 {[%clk 0:01:03.4]} 47. Ke1 {[%clk 0:00:04.2]} 47... Ree7 {[%clk 0:01:00.6]}
48. Kd2 {[%clk 0:00:04.1]} 48... Red7 {[%clk 0:00:59.9]} 49. Rxd7+ {[%clk
0:00:04.6]} 49... Rxd7 {[%clk 0:01:00.8]} 50. e5 {[%clk 0:00:05.4]} 50... Bxc4
{[%clk 0:01:00.7]} 51. Kc3 {[%clk 0:00:05.2]} 51... Bxa2 {[%clk 0:01:00.5]} 52.
Ne4 {[%clk 0:00:06]} 52... Bd5 {[%clk 0:00:59.7]} 53. Nf6+ {[%clk 0:00:06.3]}
53... Kg7 {[%clk 0:00:53.2]} 54. Nxd7 {[%clk 0:00:07.2]} 54... Bxf3 {[%clk
0:00:53.5]} 55. Nxc5 {[%clk 0:00:07.9]} 55... Bg2 {[%clk 0:00:49.4]} 56. Kd4
{[%clk 0:00:06]} 56... Bxh3 {[%clk 0:00:49.4]} 57. e6 {[%clk 0:00:06.6]} 57...
Bxg4 {[%clk 0:00:49]} 58. Ke5 {[%clk 0:00:07.5]} 58... f3 {[%clk 0:00:48.4]} 59.
Nd3 {[%clk 0:00:06.9]} 59... a5 {[%clk 0:00:47.5]} 60. Kd6 {[%clk 0:00:04.4]}
60... a4 {[%clk 0:00:47.3]} 61. e7 {[%clk 0:00:04.8]} 61... Bh5 {[%clk
0:00:47.7]} 62. Ne5 {[%clk 0:00:02.1]} 62... f2 {[%clk 0:00:46.3]} 0-1

[Event "Late-Titled-Tuesday-Blitz-June-04-2024"]
[Site "Chess.com"]
[Date "2024.06.04"]
[Round "3"]
[White "snowlord"]
[Black "Evan_Attaker"]
[Result "1-0"]
[WhiteElo "2931"]
[BlackElo "2694"]
[TimeControl "180+1"]
[EndTime "14:28:21 PDT"]
[Termination "snowlord won on time"]

1. Nf3 {[%clk 0:02:31.3]} 1... c5 {[%clk 0:02:59.2]} 2. g3 {[%clk 0:02:30.5]}
2... b6 {[%clk 0:02:59.4]} 3. e4 {[%clk 0:02:29.2]} 3... Bb7 {[%clk 0:02:59.3]}
4. d3 {[%clk 0:02:27.1]} 4... d6 {[%clk 0:02:58.8]} 5. Bg2 {[%clk 0:02:26.6]}
5... e6 {[%clk 0:02:58.5]} 6. O-O {[%clk 0:02:23]} 6... Nf6 {[%clk 0:02:58.2]}
7. Nfd2 {[%clk 0:02:13.8]} 7... Nbd7 {[%clk 0:02:52.7]} 8. Re1 {[%clk 0:02:10]}
8... Qc7 {[%clk 0:02:52.2]} 9. a4 {[%clk 0:02:05.7]} 9... a6 {[%clk 0:02:51.2]}
10. Nc3 {[%clk 0:02:06.4]} 10... Be7 {[%clk 0:02:49.1]} 11. f4 {[%clk
0:02:07.1]} 11... O-O {[%clk 0:02:47.7]} 12. Nc4 {[%clk 0:02:02.6]} 12... Rfe8
{[%clk 0:02:43.5]} 13. Ne3 {[%clk 0:02:02.8]} 13... Bf8 {[%clk 0:02:38.1]} 14.
b3 {[%clk 0:02:00.6]} 14... Bc6 {[%clk 0:02:31.4]} 15. g4 {[%clk 0:01:52.7]}
15... g6 {[%clk 0:02:05.7]} 16. Bf3 {[%clk 0:01:51.5]} 16... d5 {[%clk
0:01:57.3]} 17. exd5 {[%clk 0:01:44.3]} 17... exd5 {[%clk 0:01:54.7]} 18. Nexd5
{[%clk 0:01:41.6]} 18... Bxd5 {[%clk 0:01:51.5]} 19. Nxd5 {[%clk 0:01:40.4]}
19... Nxd5 {[%clk 0:01:42.7]} 20. Bxd5 {[%clk 0:01:41.3]} 20... Rad8 {[%clk
0:01:41.1]} 21. Bd2 {[%clk 0:01:26.3]} 21... Bg7 {[%clk 0:01:39.5]} 22. Rb1
{[%clk 0:01:21.8]} 22... Ne5 {[%clk 0:01:34.6]} 23. Bg2 {[%clk 0:01:19.8]} 23...
Nc6 {[%clk 0:01:31.3]} 24. Rxe8+ {[%clk 0:01:17.2]} 24... Rxe8 {[%clk
0:01:31.2]} 25. c3 {[%clk 0:01:18.1]} 25... Rd8 {[%clk 0:01:26.2]} 26. Qe2
{[%clk 0:01:12.4]} 26... b5 {[%clk 0:01:17.2]} 27. axb5 {[%clk 0:01:11.8]} 27...
axb5 {[%clk 0:01:18.1]} 28. Re1 {[%clk 0:01:11.8]} 28... b4 {[%clk 0:01:15.2]}
29. f5 {[%clk 0:01:04.2]} 29... bxc3 {[%clk 0:01:13.3]} 30. Qe8+ {[%clk
0:01:02.1]} 30... Bf8 {[%clk 0:01:02.4]} 31. Bh6 {[%clk 0:00:44.8]} 31... Rxe8
{[%clk 0:00:25]} 32. Rxe8 {[%clk 0:00:44.4]} 32... Qe7 {[%clk 0:00:18.3]} 33.
Rxe7 {[%clk 0:00:29.3]} 33... Nxe7 {[%clk 0:00:19.2]} 34. Be3 {[%clk 0:00:13.2]}
34... gxf5 {[%clk 0:00:18.4]} 35. h3 {[%clk 0:00:13.8]} 35... fxg4 {[%clk
0:00:18.1]} 36. hxg4 {[%clk 0:00:14.7]} 36... Ng6 {[%clk 0:00:18]} 37. Be4
{[%clk 0:00:11]} 37... Ne5 {[%clk 0:00:16.4]} 38. g5 {[%clk 0:00:11.6]} 38...
Ng4 {[%clk 0:00:10.4]} 39. Bf4 {[%clk 0:00:11.5]} 39... Bg7 {[%clk 0:00:07.2]}
40. Kf1 {[%clk 0:00:12]} 40... Bd4 {[%clk 0:00:05.8]} 41. Ke2 {[%clk 0:00:11.5]}
41... Kg7 {[%clk 0:00:06.3]} 42. Bf5 {[%clk 0:00:08.4]} 1-0